[Event "2nd Namma Bengaluru Open-A 2025"]
[Site "Bengaluru"]
[Date "2025.04.18"]
[Round "10.28"]
[White "Jinan Jomon"]
[Black "Prakhar Tripathi"]
[Result "1-0"]
[Annotator "RC"]
[ECO "C92"]
[WhiteElo "2311"]
[BlackElo "1932"]
[PlyCount "105"]
[EventDate "2025.04.10"]
[EventType "swiss"]
[EventCountry "IND"]
[SourceTitle "playchess.com"]
[Source "ChessBase"]
[SourceQuality "1"]
[TimeControl "5400+30"]

1. e4 {[%emt 0:00:13]} e5 {[%emt 0:00:06]} 2. Nf3 {[%emt 0:00:33]} Nc6 {[%emt 0:00:01]} 3. Bb5 {[%emt 0:00:07]} a6 {[%emt 0:00:09]} 4. Ba4 {[%emt 0:00:04]} Nf6 {[%emt 0:00:07]} 5. O-O {[%emt 0:00:06]} b5 {[%emt 0:00:05]} 6. Bb3 {[%emt 0:00:05]} Be7 {[%emt 0:00:10]} 7. Re1 {[%emt 0:00:16]} d6 {[%emt 0:00:10]} 8. c3 {[%emt 0:00:10]} O-O {[%emt 0:00:12]} 9. h3 {[%emt 0:00:10]} Bd7 {[%emt 0:01:41]} 10. d4 {[%emt 0:01:24]} a5 {[%emt 0:00:21]} 11. a3 {[%emt 0:05:30]} a4 {[%emt 0:07:41]} 12. Bc2 {[%emt 0:02:32]} exd4 {[%emt 0:05:07]} 13. cxd4 {[%emt 0:05:14]} Na5 {[%emt 0:02:09]} 14. Nc3 {[%emt 0:03:58]} c6 {[%emt 0:15:24]} 15. Qd3 {[%emt 0:18:58]} Ne8 {[%emt 0:15:09]} 16. d5 {[%emt 0:13:12]} c5 {[%emt 0:14:01]} 17. e5 {[%emt 0:01:21]} g6 {[%emt 0:02:44]} 18. Bh6 {[%emt 0:06:06]} Ng7 {[%emt 0:03:27]} 19. e6 {[%emt 0:03:25]} fxe6 {[%emt 0:02:40]} 20. dxe6 {[%emt 0:00:07]} Bc6 {[%emt 0:02:32]} 21. Nd5 {[%emt 0:06:39]} Bxd5 {[%emt 0:15:10]} 22. Qxd5 {[%emt 0:00:02]} Nc4 {[%emt 0:02:30]} 23. Rab1 {[%emt 0:07:55]} Ra7 {[%emt 0:00:48]} 24. Ng5 {[%emt 0:02:19]} Nb6 {[%emt 0:01:35]} 25. Qd2 {[%emt 0:00:13]} Nc4 {[%emt 0:01:06]} 26. Qc1 {[%emt 0:00:01]} Bf6 {[%emt 0:02:05]} 27. f4 {[%emt 0:05:26]} Bd4+ {[%emt 0:00:47]} 28. Kh1 {[%emt 0:00:05]} Qf6 {[%emt 0:01:34]} 29. b3 {[%emt 0:08:52]} axb3 {[%emt 0:02:03]} 30. Bxb3 {[%emt 0:00:03]} d5 {[%emt 0:00:26]} 31. a4 {[%emt 0:02:05]} bxa4 {[%emt 0:01:23]} 32. Bxc4 {[%emt 0:00:08]} dxc4 {[%emt 0:00:02]} 33. Qxc4 {[%emt 0:00:57]} Re7 {[%emt 0:00:01]} 34. Ne4 {[%emt 0:07:02]} Qxe6 {[%emt 0:03:00]} 35. Nf6+ {[%emt 0:00:04]} Rxf6 {[%emt 0:00:07]} 36. Rxe6 {[%emt 0:00:04]} Rfxe6 {[%emt 0:00:12]} 37. Rb6 {[%emt 0:01:19]} Kf7 {[%emt 0:00:30]} 38. g4 {[%emt 0:00:14]} Ke8 {[%emt 0:01:01]} 39. Qxa4+ {[%emt 0:00:54]} Kf7 {[%emt 0:01:08]} 40. Qc4 {[%emt 0:00:22]} Ke8 {[%emt 0:00:01]} 41. Rb8+ {[%emt 0:00:34]} Kd7 {[%emt 0:00:55]} 42. Qd5+ {[%emt 0:01:31]} Rd6 {[%emt 0:00:26]} 43. Rb7+ {[%emt 0:00:11]} Kc8 {[%emt 0:00:10]} 44. Qxd6 {[%emt 0:00:44]} Re1+ {[%emt 0:00:49]} 45. Kg2 {[%emt 0:00:08]} Kxb7 {[%emt 0:00:03]} 46. Bxg7 {[%emt 0:00:21]} Bxg7 {[%emt 0:01:08]} 47. Qd7+ {[%emt 0:00:02]} Kb6 {[%emt 0:00:11]} 48. Qxg7 {[%emt 0:00:03]} Rb1 {[%emt 0:00:38]} 49. f5 {[%emt 0:00:08]} gxf5 {[%emt 0:00:06]} 50. gxf5 {[%emt 0:00:03]} c4 {[%emt 0:00:11]} 51. Qd4+ {[%emt 0:00:16]} Kb5 {[%emt 0:00:10]} 52. f6 {[%emt 0:00:03]} c3 {[%emt 0:01:20]} 53. Qd3+ {[%emt 0:00:05]} 1-0

[Event "2nd Namma Bengaluru Open-A 2025"]
[Site "Bengaluru"]
[Date "2025.04.18"]
[Round "10.29"]
[White "Neelash Saha"]
[Black "Madhvendra Pratap Sharma"]
[Result "1-0"]
[Annotator "RC"]
[ECO "D32"]
[WhiteElo "2460"]
[BlackElo "2234"]
[PlyCount "119"]
[EventDate "2025.04.10"]
[EventType "swiss"]
[EventCountry "IND"]
[SourceTitle "playchess.com"]
[Source "ChessBase"]
[SourceQuality "1"]
[TimeControl "5400+30"]

1. d4 {[%emt 0:00:04]} e6 {[%emt 0:00:28]} 2. c4 {[%emt 0:00:08]} d5 {[%emt 0:00:16]} 3. Nc3 {[%emt 0:00:10]} c5 {[%emt 0:00:10]} 4. cxd5 {[%emt 0:00:43]} cxd4 {[%emt 0:00:07]} 5. Qa4+ {[%emt 0:00:22]} Bd7 {[%emt 0:00:05]} 6. Qxd4 {[%emt 0:00:04]} exd5 {[%emt 0:00:06]} 7. Qxd5 {[%emt 0:00:10]} Nc6 {[%emt 0:00:05]} 8. a3 {[%emt 0:02:49]} Nf6 {[%emt 0:00:23]} 9. Qd1 {[%emt 0:00:06]} Bc5 {[%emt 0:02:16]} 10. Nf3 {[%emt 0:00:10]} Qe7 {[%emt 0:00:33]} 11. Bg5 {[%emt 0:03:10]} h6 {[%emt 0:00:48]} 12. Bxf6 {[%emt 0:01:55]} Qxf6 {[%emt 0:00:07]} 13. e3 {[%emt 0:00:28]} Rd8 {[%emt 0:02:07]} 14. Qc2 {[%emt 0:04:07]} Bb6 {[%emt 0:04:36]} 15. Qe4+ {[%emt 0:02:48]} Ne7 {[%emt 0:08:15]} 16. Qe5 {[%emt 0:00:47]} Qxe5 {[%emt 0:13:19]} 17. Nxe5 {[%emt 0:00:05]} Be6 {[%emt 0:08:54]} 18. Bb5+ {[%emt 0:09:20]} Kf8 {[%emt 0:01:09]} 19. Rd1 {[%emt 0:02:30]} Rxd1+ {[%emt 0:03:23]} 20. Kxd1 {[%emt 0:00:04]} g6 {[%emt 0:01:35]} 21. Nd7+ {[%emt 0:07:09]} Bxd7 {[%emt 0:02:20]} 22. Bxd7 {[%emt 0:00:05]} Kg7 {[%emt 0:00:03]} 23. Ke2 {[%emt 0:00:09]} Bc7 {[%emt 0:04:03]} 24. g3 {[%emt 0:02:10]} Rd8 {[%emt 0:01:32]} 25. Bh3 {[%emt 0:00:07]} Nd5 {[%emt 0:04:09]} 26. Nb1 {[%emt 0:00:06]} b5 {[%emt 0:08:13]} 27. Bg2 {[%emt 0:00:07]} Nb6 {[%emt 0:00:57]} 28. Rc1 {[%emt 0:00:19]} Be5 {[%emt 0:04:35]} 29. b3 {[%emt 0:00:07]} Bb2 {[%emt 0:14:50]} 30. Rc2 {[%emt 0:00:44]} Ba1 {[%emt 0:00:21]} 31. Rc5 {[%emt 0:00:50]} Rc8 {[%emt 0:00:56]} 32. Rc6 {[%emt 0:04:02]} Rd8 {[%emt 0:02:46]} 33. Be4 {[%emt 0:02:23]} Bb2 {[%emt 0:02:26]} 34. Rc2 {[%emt 0:00:27]} Bf6 {[%emt 0:01:12]} 35. Rc5 {[%emt 0:00:11]} b4 {[%emt 0:01:06]} 36. axb4 {[%emt 0:00:55]} Be7 {[%emt 0:00:33]} 37. Ra5 {[%emt 0:00:06]} Rd7 {[%emt 0:00:49]} 38. b5 {[%emt 0:00:07]} Bb4 {[%emt 0:00:18]} 39. Ra2 {[%emt 0:00:06]} Rc7 {[%emt 0:00:13]} 40. Bc6 {[%emt 0:00:06]} Kf8 {[%emt 0:01:19]} 41. Na3 {[%emt 0:02:14]} Ke7 {[%emt 0:00:30]} 42. Nc2 {[%emt 0:00:19]} Bc3 {[%emt 0:01:12]} 43. Kd3 {[%emt 0:00:24]} Bg7 {[%emt 0:00:14]} 44. Nb4 {[%emt 0:01:41]} Kd6 {[%emt 0:01:01]} 45. Na6 {[%emt 0:00:26]} Rc8 {[%emt 0:02:21]} 46. b4 {[%emt 0:00:41]} Rd8 {[%emt 0:03:34]} 47. Nc5 {[%emt 0:00:32]} Kc7+ {[%emt 0:00:06]} 48. Ke2 {[%emt 0:00:04]} Nc8 {[%emt 0:00:05]} 49. Be4 {[%emt 0:03:59]} Nd6 {[%emt 0:02:26]} 50. Bd3 {[%emt 0:00:04]} Kb8 {[%emt 0:00:13]} 51. Ra6 {[%emt 0:00:25]} Bf8 {[%emt 0:01:10]} 52. Rc6 {[%emt 0:00:25]} h5 {[%emt 0:00:43]} 53. e4 {[%emt 0:01:03]} Bg7 {[%emt 0:00:14]} 54. f4 {[%emt 0:00:20]} Ne8 {[%emt 0:00:01]} 55. Na6+ {[%emt 0:00:42]} Kb7 {[%emt 0:00:04]} 56. e5 {[%emt 0:00:04]} f5 {[%emt 0:00:55]} 57. Rxg6 {[%emt 0:00:11]} Bf8 {[%emt 0:00:11]} 58. Bxf5 {[%emt 0:00:15]} Nc7 {[%emt 0:00:03]} 59. Be4+ {[%emt 0:00:12]} Kc8 {[%emt 0:03:34]} 60. Rc6 {[%emt 0:00:07]} 1-0

[Event "2nd Namma Bengaluru Open-A 2025"]
[Site "Bengaluru"]
[Date "2025.04.18"]
[Round "10.29"]
[White "Neelash Saha"]
[Black "Madhvendra Pratap Sharma"]
[Result "*"]
[Annotator "RC"]
[ECO "D32"]
[WhiteElo "2460"]
[BlackElo "2234"]
[PlyCount "40"]
[EventDate "2025.04.10"]
[EventType "swiss"]
[EventCountry "IND"]
[SourceTitle "playchess.com"]
[Source "ChessBase"]
[SourceQuality "1"]
[TimeControl "5400+30"]

1. d4 {[%emt 0:00:04]} e6 {[%emt 0:00:28]} 2. c4 {[%emt 0:00:08]} d5 {[%emt 0:00:16]} 3. Nc3 {[%emt 0:00:10]} c5 {[%emt 0:00:10]} 4. cxd5 {[%emt 1:32:08]} cxd4 {[%emt 0:00:07]} 5. Qa4+ {[%emt 0:00:22]} Bd7 {[%emt 0:00:05]} 6. Qxd4 {[%emt 0:00:04]} exd5 {[%emt 0:00:06]} 7. Qxd5 {[%emt 0:00:10]} Nc6 {[%emt 0:00:05]} 8. a3 {[%emt 0:02:49]} Nf6 {[%emt 0:00:23]} 9. Qd1 {[%emt 0:00:06]} Bc5 {[%emt 0:02:16]} 10. Nf3 {[%emt 0:00:10]} Qe7 {[%emt 0:00:33]} 11. Bg5 {[%emt 0:03:10]} h6 {[%emt 0:00:48]} 12. Bxf6 {[%emt 0:01:55]} Qxf6 {[%emt 1:31:13]} 13. e3 {[%emt 0:00:28]} Rd8 {[%emt 0:02:07]} 14. Qc2 {[%emt 0:04:07]} Bb6 {[%emt 0:04:36]} 15. Qe4+ {[%emt 0:02:48]} Ne7 {[%emt 0:08:15]} 16. Qe5 {[%emt 0:00:47]} Qxe5 {[%emt 0:13:19]} 17. Nxe5 {[%emt 1:20:59]} Be6 {[%emt 0:08:54]} 18. Bb5+ {[%emt 0:09:20]} Kf8 {[%emt 0:01:09]} 19. Rd1 {[%emt 0:02:30]} Rd5 {[%emt 0:56:16]} 20. Rd2 Rxd2 {[%emt 0:00:00]} *

[Event "2nd Namma Bengaluru Open-A 2025"]
[Site "Bengaluru"]
[Date "2025.04.18"]
[Round "10.30"]
[White "Mahitosh Dey"]
[Black "Sanikidze, Tornike"]
[Result "0-1"]
[Annotator "RC"]
[ECO "B86"]
[WhiteElo "2226"]
[BlackElo "2448"]
[PlyCount "72"]
[EventDate "2025.04.10"]
[EventType "swiss"]
[EventCountry "IND"]
[SourceTitle "playchess.com"]
[Source "ChessBase"]
[SourceQuality "1"]
[TimeControl "5400+30"]

1. e4 {[%emt 0:00:12]} c5 {[%emt 0:03:08]} 2. Nf3 {[%emt 0:00:19]} d6 {[%emt 0:00:05]} 3. d4 {[%emt 0:00:05]} cxd4 {[%emt 0:00:05]} 4. Nxd4 {[%emt 0:00:05]} Nf6 {[%emt 0:00:07]} 5. Nc3 {[%emt 0:00:04]} e6 {[%emt 0:01:26]} 6. Be3 {[%emt 0:01:10]} Be7 {[%emt 0:00:52]} 7. Bc4 {[%emt 0:01:49]} a6 {[%emt 0:00:51]} 8. Bb3 {[%emt 0:02:19]} Qc7 {[%emt 0:03:19]} 9. f3 {[%emt 0:08:32]} Nc6 {[%emt 0:00:58]} 10. Nxc6 {[%emt 0:00:17]} bxc6 {[%emt 0:01:34]} 11. Qe2 {[%emt 0:00:21]} O-O {[%emt 0:01:40]} 12. g4 {[%emt 0:00:08]} Nd7 {[%emt 0:01:14]} 13. O-O-O {[%emt 0:00:08]} a5 {[%emt 0:05:58]} 14. g5 {[%emt 0:04:25]} Ba6 {[%emt 0:01:57]} 15. Qg2 {[%emt 0:00:19]} c5 {[%emt 0:00:09]} 16. h4 {[%emt 0:00:40]} a4 {[%emt 0:11:33]} 17. Bxa4 {[%emt 0:01:37]} Nb6 {[%emt 0:00:01]} 18. Bb3 {[%emt 0:08:48]} c4 {[%emt 0:02:46]} 19. Ba4 {[%emt 0:00:04]} Rfb8 {[%emt 0:05:43]} 20. g6 {[%emt 0:28:39]} Nxa4 {[%emt 0:04:10]} 21. gxf7+ {[%emt 0:08:44]} Kxf7 {[%emt 0:00:40]} 22. Nxa4 {[%emt 0:00:09]} Qa5 {[%emt 0:00:16]} 23. b3 {[%emt 0:16:51]} cxb3 {[%emt 0:01:37]} 24. axb3 {[%emt 0:00:06]} Bb5 {[%emt 0:01:03]} 25. Rhg1 {[%emt 0:01:33]} Bf6 {[%emt 0:05:16]} 26. e5 {[%emt 0:00:03]} Bxe5 {[%emt 0:02:38]} 27. f4 {[%emt 0:03:18]} Bf6 {[%emt 0:00:03]} 28. Bd4 {[%emt 0:00:14]} Qd8 {[%emt 0:00:01]} 29. Qe4 {[%emt 0:07:59]} Bxa4 {[%emt 0:00:41]} 30. Qxh7 {[%emt 0:00:05]} Bxd4 {[%emt 0:01:31]} 31. Qg6+ {[%emt 0:00:03]} Ke7 {[%emt 0:00:55]} 32. Rxd4 {[%emt 0:00:07]} Be8 {[%emt 0:00:01]} 33. Qxg7+ {[%emt 0:00:12]} Bf7 {[%emt 0:00:03]} 34. Kb2 {[%emt 0:02:30]} Qb6 {[%emt 0:05:49]} 35. Qg5+ {[%emt 0:04:11]} Ke8 {[%emt 0:00:11]} 36. Rdd1 {[%emt 0:00:46]} Qa7 {[%emt 0:00:38]} 0-1